bitfinex-derivatives/quotes_BNBF0:USTF0_20250524
["timestamp","ask_amount","ask_price","bid_price","bid_amount"]
[1748127756164,2.72757054,668.48,667.85,0.67816837]
[1748127756364,2.18074266,668.47,667.85,0.67816837]
[1748127756564,2.18074266,668.46,667.85,0.67816837]
[1748127756764,1.18421983,668.45,667.85,0.67816837]
[1748127756964,1.18421983,668.44,667.85,0.67816837]
[1748127757166,2.18074266,668.43,667.94,0.47544884]
[1748127757465,1.18421983,668.42,667.95,0.99]
[1748127757761,2.18074266,668.41,667.95,0.99]
[1748127757961,1.18421983,668.4,667.95,0.99]
[1748127758161,2.72763842,668.39,667.95,0.99]
[1748127758361,1.73111559,668.38,667.95,0.99]
[1748127758566,2.72763842,668.37,667.95,0.99]
[1748127758762,1.18421983,668.36,667.95,0.99]
[1748127758966,1.18421983,668.35,667.95,0.99]
[1748127759167,1.18421983,668.34,667.95,0.99]
[1748127759363,2.18074266,668.33,667.95,0.99]
[1748127759561,1.18421983,668.32,667.95,0.99]
[1748127759762,2.18074266,668.31,667.95,0.99]
[1748127759966,1.18421983,668.3,667.95,0.99]
[1748127760166,2.18074266,668.29,667.95,0.99]
[1748127760363,1.18421983,668.28,667.95,0.99]
[1748127760568,2.18074266,668.27,667.95,0.99]
[1748127760864,1.18421983,668.26,667.95,0.99]
[1748127761067,2.18074266,668.25,667.95,0.99]
[1748127761266,1.18421983,668.24,667.95,0.99]
[1748127761463,1.18421983,668.23,667.95,0.99]
[1748127761668,1.18622156,668.22,667.95,0.99]
[1748127761869,0.99652283,668.25,667.95,0.99]
[1748127762068,1.18627357,668.24,667.95,0.99]
[1748127762371,1.18627357,668.23,667.95,0.99]
[1748127762571,1.10769483,668.49,667.95,0.99]
[1748127762772,1.73423852,668.48,667.95,0.99]
[1748127763074,2.73133746,668.47,667.95,0.99]
[1748127763270,1.73423852,668.46,667.97,0.47544884]
[1748127763467,1.73442394,668.45,667.97,0.47544884]
[1748127763669,1.73442394,668.44,667.97,0.47544884]
[1748127763870,2.73152288,668.43,667.97,0.47544884]
[1748127764171,2.73152288,668.42,667.97,0.47544884]
[1748127764374,1.73442394,668.41,667.97,0.47544884]
[1748127764569,2.18369662,668.4,667.97,0.47544884]
[1748127764769,1.18659768,668.39,667.97,0.47544884]
[1748127764971,1.18659768,668.38,667.97,0.47544884]
[1748127765171,2.18369662,668.37,668.01,0.47544884]
[1748127765372,1.18692285,668.36,668.01,0.47544884]
[1748127765573,1.18692285,668.35,668.01,0.47544884]
[1748127765766,2.18402179,668.34,668.01,0.47544884]
[1748127765969,1.18692285,668.33,668.01,0.47544884]
[1748127766172,1.18692285,668.32,668.01,0.47544884]
[1748127766375,1.18692285,668.31,668.01,0.47544884]
[1748127766672,1.18700091,668.3,668.01,0.47544884]
[1748127766867,1.10769483,668.61,668.01,0.47544884]
[1748127767372,1.73505399,668.6,667.95,0.99]
[1748127767569,2.73482967,668.59,667.95,0.99]
[1748127767772,1.73505399,668.58,667.95,0.99]
[1748127767970,1.73505399,668.57,667.95,0.99]
[1748127768175,1.73505399,668.56,667.95,0.99]
[1748127768371,1.73505399,668.55,667.95,0.99]
[1748127768575,2.73482967,668.54,667.95,0.99]
[1748127768771,1.73505399,668.53,667.95,0.99]
[1748127768974,1.73505399,668.52,667.95,0.99]
[1748127769172,1.73505399,668.51,667.95,0.99]
[1748127769377,1.73505399,668.5,667.95,0.99]
[1748127769673,2.73482967,668.49,667.95,0.99]
[1748127769876,1.73505399,668.48,667.95,0.99]
[1748127770070,1.73505399,668.47,667.95,0.99]
[1748127770275,2.73482967,668.46,667.95,0.99]
[1748127770477,1.18704313,668.45,667.95,0.99]
[1748127770775,1.18704313,668.44,667.95,0.99]
[1748127770977,1.18704313,668.43,667.95,0.99]
[1748127771177,1.18704313,668.42,667.95,0.99]
[1748127771378,1.18704313,668.41,667.95,0.99]
[1748127771578,2.18681881,668.4,667.95,0.99]
[1748127771778,1.18704313,668.39,667.95,0.99]
[1748127771972,1.18704313,668.38,667.95,0.99]
[1748127772178,1.18704313,668.37,667.95,0.99]
[1748127772378,1.18704313,668.36,667.95,0.99]
[1748127772575,1.18704313,668.35,667.95,0.99]
[1748127772879,1.10769483,668.7,667.95,0.99]
[1748127773073,2.73303764,668.69,667.95,0.99]
[1748127773274,1.73436864,668.68,667.95,0.99]
[1748127773477,1.73436864,668.67,667.95,0.99]
[1748127773675,2.73303764,668.66,667.95,0.99]
[1748127773981,1.73436864,668.65,667.95,0.99]
[1748127774177,1.73436864,668.64,667.95,0.99]
[1748127774379,2.73303764,668.63,667.95,0.99]
[1748127774580,1.73419626,668.62,667.95,0.99]
[1748127774783,1.73419626,668.61,667.95,0.99]
[1748127774982,2.73286526,668.6,667.95,0.99]
[1748127775178,1.73419626,668.59,667.95,0.99]
[1748127775383,1.73419626,668.58,667.95,0.99]
[1748127775679,2.73286526,668.57,667.95,0.99]
[1748127775880,1.73419626,668.56,667.95,0.99]
[1748127776076,1.73419626,668.55,667.95,0.99]
[1748127776278,1.73360634,668.54,667.95,0.99]
[1748127776481,1.18596345,668.53,667.95,0.99]
[1748127776678,1.18596345,668.52,667.95,0.99]
[1748127776881,2.18463245,668.51,667.95,0.99]
[1748127777084,1.18596345,668.5,667.95,0.99]
[1748127777287,2.18463245,668.49,667.95,0.99]
[1748127777480,1.18596345,668.48,667.95,0.99]
[1748127777785,1.18596345,668.47,667.95,0.99]
[1748127777981,2.18463245,668.46,667.95,0.99]
[1748127778180,1.18596345,668.45,667.95,0.99]
[1748127778385,1.18596345,668.44,667.95,0.99]
[1748127778585,1.18596345,668.43,667.95,0.99]
[1748127778788,1.18596345,668.42,667.95,0.99]
[1748127778988,0.998669,668.44,667.95,0.99]
[1748127779186,1.18551492,668.43,667.95,0.99]
[1748127779387,1.18551492,668.42,667.95,0.99]
[1748127779589,1.10769483,668.75,667.95,0.99]
[1748127779784,1.73268356,668.74,667.95,0.99]
[1748127779986,1.10769483,668.67,667.99,0.67816837]
[1748127780186,2.73033731,668.66,667.99,0.67816837]
[1748127780383,1.73267524,668.65,667.99,0.67816837]
[1748127780683,2.73033731,668.64,667.99,0.67816837]
[1748127780889,1.73267524,668.63,667.99,0.67816837]
[1748127781089,1.73267524,668.62,667.99,0.67816837]
[1748127781290,1.73267524,668.61,667.99,0.67816837]
[1748127781489,1.73267524,668.6,668.11,0.47544884]
[1748127781682,2.73033731,668.59,668.11,0.47544884]
[1748127781887,1.73267524,668.58,668.11,0.47544884]
[1748127782087,1.73267524,668.57,668.11,0.47544884]
[1748127782287,1.73267524,668.56,668.11,0.47544884]
[1748127782486,2.73033731,668.55,668.11,0.47544884]
[1748127782689,1.73267524,668.54,668.11,0.47544884]
[1748127782890,1.18539477,668.53,668.11,0.47544884]
[1748127783096,1.18539477,668.52,668.11,0.47544884]
[1748127783289,1.18539477,668.51,668.11,0.47544884]
[1748127783489,2.18305684,668.5,668.11,0.47544884]
[1748127783685,1.18539477,668.49,668.11,0.47544884]
[1748127783887,1.18539477,668.48,667.99,0.67816837]
[1748127784091,1.18539477,668.47,667.96,0.47544884]
[1748127784289,1.18539477,668.46,667.96,0.47544884]
[1748127784489,2.18305684,668.45,667.96,0.47544884]
[1748127784686,1.18539477,668.44,667.96,0.47544884]
[1748127784889,2.182584,668.43,667.96,0.47544884]
[1748127785092,1.18492193,668.42,667.96,0.47544884]
[1748127785291,1.18492193,668.41,667.96,0.47544884]
[1748127785591,2.182584,668.4,667.96,0.47544884]
[1748127785791,1.18492193,668.39,667.95,0.99]
[1748127785991,1.18492193,668.38,667.95,0.99]
[1748127786292,2.182584,668.37,667.95,0.99]
[1748127786491,1.18492193,668.36,667.95,0.99]
[1748127786691,1.18492193,668.35,667.95,0.99]
[1748127786991,2.182584,668.34,667.95,0.99]
[1748127787186,2.182584,668.33,667.95,0.99]
[1748127787390,1.18492193,668.32,667.95,0.99]
[1748127787591,1.18492193,668.31,667.95,0.99]
[1748127787792,1.18492193,668.3,667.97,0.47544884]
[1748127787988,1.18492193,668.29,667.97,0.47544884]
[1748127788193,1.10769483,668.54,667.97,0.47544884]
[1748127788393,1.73168773,668.53,667.97,0.47544884]
[1748127788593,1.73168773,668.52,667.97,0.47544884]
[1748127788795,1.73168773,668.51,667.97,0.47544884]
[1748127788997,1.73168773,668.5,667.97,0.47544884]
[1748127789190,1.73168773,668.49,667.97,0.47544884]
[1748127789391,2.72658519,668.48,667.97,0.47544884]
[1748127789590,1.73168773,668.47,667.97,0.47544884]
[1748127789794,2.72658519,668.46,667.97,0.47544884]
[1748127789995,1.73168773,668.45,667.97,0.47544884]
[1748127790195,1.73168773,668.44,667.97,0.47544884]
[1748127790395,1.73174964,668.43,667.97,0.47544884]
[1748127790595,1.73174964,668.42,667.97,0.47544884]
[1748127790897,2.7266471,668.41,668.07,0.47544884]
[1748127791097,1.73174964,668.4,668.07,0.47544884]
[1748127791397,1.18473556,668.39,668.07,0.47544884]
[1748127791693,1.18473556,668.38,668.07,0.47544884]
[1748127791896,1.18473556,668.37,667.95,0.99]
[1748127792096,1.18519294,668.36,667.95,0.99]
[1748127792290,1.18519294,668.35,667.95,0.99]
[1748127792493,2.1800904,668.34,667.95,0.99]
[1748127792697,1.18519294,668.33,667.95,0.99]
[1748127792898,2.1800904,668.32,667.95,0.99]
[1748127793098,1.18519294,668.31,667.95,0.99]
[1748127793295,1.18519294,668.3,667.95,0.99]
[1748127793494,1.18519294,668.29,667.95,0.99]
[1748127793798,0.99489746,668.3,667.95,0.99]
[1748127793999,1.10769483,668.58,667.95,0.99]
[1748127794201,1.73285221,668.57,667.95,0.99]
[1748127794500,2.73210646,668.56,667.95,0.99]
[1748127794694,1.73285221,668.55,667.95,0.99]
[1748127795000,2.73210646,668.54,667.95,0.99]
[1748127795300,1.73285221,668.53,667.95,0.99]
[1748127795595,1.73285221,668.52,667.95,0.99]
[1748127795801,1.73285221,668.51,667.95,0.99]
[1748127796001,1.73285221,668.5,667.95,0.99]
[1748127796203,1.73285221,668.49,667.95,0.99]
[1748127796403,1.73285221,668.48,667.95,0.99]
[1748127796598,2.73210646,668.47,667.95,0.99]
[1748127796799,1.73285221,668.46,667.95,0.99]
[1748127796998,1.73285221,668.45,667.95,0.99]
[1748127797199,2.18479256,668.44,667.95,0.99]
[1748127797397,1.18553831,668.43,667.95,0.99]
[1748127797597,1.18553831,668.42,667.95,0.99]
[1748127797798,1.18553831,668.41,667.95,0.99]
[1748127798002,2.18479256,668.4,667.95,0.99]
[1748127798198,1.18553831,668.39,667.95,0.99]
[1748127798404,1.18553831,668.38,667.95,0.99]
[1748127798703,1.18553831,668.37,667.95,0.99]
[1748127798899,2.18479256,668.36,667.95,0.99]
[1748127799108,1.18553831,668.35,667.95,0.99]
[1748127799404,2.18530776,668.34,667.95,0.99]
[1748127799701,2.18530776,668.33,667.95,0.99]
[1748127799903,1.18605351,668.32,667.95,0.99]
[1748127800103,0.99925425,668.33,667.95,0.99]
[1748127800403,1.18608042,668.32,667.95,0.99]
[1748127800602,1.10769483,668.63,667.95,0.99]
[1748127800802,1.73378959,668.62,667.95,0.99]
[1748127800998,1.73378959,668.61,667.95,0.99]
[1748127801198,2.73534076,668.6,667.95,0.99]
[1748127801401,1.7337696,668.59,667.95,0.99]
[1748127801598,1.7337696,668.58,667.95,0.99]
[1748127801797,1.7337696,668.57,667.95,0.99]
[1748127802001,2.73534076,668.56,667.95,0.99]
[1748127802204,1.7337696,668.55,667.95,0.99]
[1748127802403,2.73534076,668.54,667.95,0.99]
[1748127802604,1.7337696,668.53,667.95,0.99]
[1748127802805,2.73534076,668.52,667.95,0.99]
[1748127803000,1.73382793,668.51,667.95,0.99]
[1748127803301,2.73539909,668.5,667.95,0.99]
[1748127803605,1.73382793,668.49,667.95,0.99]
[1748127803800,1.73382793,668.48,667.95,0.99]
[1748127804001,1.73382793,668.47,667.95,0.99]
[1748127804204,2.73539909,668.46,667.95,0.99]
[1748127804403,1.73382793,668.45,667.95,0.99]
[1748127804706,1.73382793,668.44,667.95,0.99]
[1748127804899,1.73484673,668.43,667.95,0.99]
[1748127805201,2.73641789,668.42,667.95,0.99]
[1748127805401,1.73484673,668.41,667.95,0.99]
[1748127805602,2.73641789,668.4,667.95,0.99]
[1748127805802,1.73484673,668.39,667.95,0.99]
[1748127806003,1.73484673,668.38,667.95,0.99]
[1748127806201,1.73500014,668.37,667.95,0.99]
[1748127806403,2.7365713,668.36,667.95,0.99]
[1748127806605,1.73500014,668.35,667.95,0.99]
[1748127806802,2.18875621,668.34,667.95,0.99]
[1748127807001,1.1873675,668.33,667.95,0.99]
[1748127807305,2.18893866,668.32,667.95,0.99]
[1748127807601,2.18893866,668.31,667.95,0.99]
[1748127807801,1.1873675,668.3,667.95,0.99]
[1748127808001,2.18893866,668.29,667.95,0.99]
[1748127808206,1.1873675,668.28,667.95,0.99]
[1748127808406,1.1873675,668.27,667.95,0.99]
[1748127808706,2.18893866,668.26,667.98,0.47544884]
[1748127808907,2.18893866,668.25,667.98,0.47544884]
[1748127809106,1.1873675,668.24,667.98,0.47544884]
[1748127809306,1.1873675,668.23,667.98,0.47544884]
[1748127809507,1.1873675,668.22,667.98,0.47544884]
[1748127809707,1.10769483,668.49,667.98,0.47544884]
[1748127809907,1.73633741,668.48,667.98,0.47544884]
[1748127810101,2.73769739,668.47,667.98,0.47544884]
[1748127810305,1.73633741,668.46,667.99,0.47544884]
[1748127810502,1.73633741,668.45,667.99,0.47544884]
[1748127810703,2.73769739,668.44,667.99,0.47544884]
[1748127810904,1.73633741,668.43,667.99,0.47544884]
[1748127811105,1.73633741,668.42,667.99,0.47544884]
[1748127811407,1.73633741,668.41,667.99,0.47544884]
[1748127811606,1.73633741,668.4,667.99,0.47544884]
[1748127811807,1.73633741,668.39,667.99,0.47544884]
[1748127812007,1.73633741,668.38,667.99,0.47544884]
[1748127812308,2.73829778,668.37,667.99,0.47544884]
[1748127812507,1.7369378,668.36,667.99,0.47544884]
[1748127812703,2.73829778,668.35,667.99,0.47544884]
[1748127812905,1.7369378,668.34,667.99,0.47544884]
[1748127813105,1.7369378,668.33,667.99,0.47544884]
[1748127813309,2.73829778,668.32,667.99,0.47544884]
[1748127813510,1.18846236,668.31,667.99,0.47544884]
[1748127813710,1.18846236,668.3,667.99,0.47544884]
[1748127813910,2.18982234,668.29,667.99,0.47544884]
[1748127814113,1.18870643,668.28,667.99,0.47544884]
[1748127814307,2.19006641,668.27,667.99,0.47544884]
[1748127814507,1.18870643,668.26,667.99,0.47544884]
[1748127814709,2.19006641,668.25,667.99,0.47544884]
[1748127814909,2.19006641,668.25,668.11,0.47544884]
[1748127814910,1.18870643,668.24,668.11,0.47544884]
[1748127815110,2.19006641,668.23,668.11,0.47544884]
[1748127815311,1.18870643,668.22,668.11,0.47544884]
[1748127815613,1.18870643,668.21,668.11,0.47544884]
[1748127815815,1.18870643,668.2,668.11,0.47544884]
[1748127816014,1.10769483,668.45,668.11,0.47544884]
[1748127816214,1.73725879,668.44,668.11,0.47544884]
[1748127816415,1.73725879,668.43,668.11,0.47544884]
[1748127816714,2.7396514,668.42,668.11,0.47544884]
[1748127816914,2.7396514,668.41,668.11,0.47544884]
[1748127817115,1.73725879,668.4,668.11,0.47544884]
[1748127817415,2.7396514,668.39,668.12,0.47544884]
[1748127817715,1.73723766,668.38,668.12,0.47544884]
[1748127818015,2.73963027,668.37,668.13,0.9]
[1748127818215,1.73723766,668.36,668.13,0.9]
[1748127818415,1.73723766,668.35,668.13,0.9]
[1748127818612,1.73723766,668.34,668.13,0.9]
[1748127818816,1.73723766,668.33,668.13,0.9]
[1748127819017,2.73963027,668.32,668.13,0.9]
[1748127819217,1.73723766,668.31,668.13,0.9]
[1748127819418,1.73723766,668.3,668.13,0.9]
[1748127819613,1.10769483,668.43,668.13,1.37544884]
[1748127819614,2.13689693,668.29,668.13,1.37544884]
[1748127819818,1.13450432,668.28,668.13,1.37544884]
[1748127820118,1.13450432,668.27,668.13,1.37544884]
[1748127820313,1.00239261,668.29,668.13,1.37544884]
[1748127820513,1.00239261,668.26,668.13,1.37544884]
[1748127820717,1.13453069,668.25,668.13,1.37544884]
[1748127820917,1.00239261,668.26,668.13,1.37544884]
[1748127821118,1.13452014,668.25,668.13,1.37544884]
[1748127821318,1.13452014,668.24,668.13,1.37544884]
[1748127821521,1.13438631,668.23,668.13,0.9]
[1748127821720,1.13438631,668.22,668.13,0.9]
[1748127821920,2.13677892,668.21,668.13,0.9]
[1748127822121,1.13438631,668.2,668.13,0.9]
[1748127822315,2.13677892,668.19,668.13,0.9]
[1748127822515,1.13438631,668.18,668.13,0.9]
[1748127822818,1.13422037,668.17,668.13,0.9]
[1748127823116,1.00239261,668.16,668.13,0.9]
[1748127823823,1.00239261,668.15,668.13,0.9]
[1748127824523,1.00239261,668.14,668.13,0.9]
[1748127831730,1.10769483,668.39,668.13,0.9]
[1748127831932,1.68098381,668.38,668.13,0.9]
[1748127832131,2.67979481,668.37,668.13,0.9]
[1748127832331,1.68098381,668.36,668.13,0.9]
[1748127832625,1.68097489,668.35,668.13,0.9]
[1748127832830,1.68097489,668.34,668.13,0.9]
[1748127833030,2.67978589,668.33,668.13,0.9]
[1748127833230,2.67978589,668.32,668.13,0.9]
[1748127833430,1.68097489,668.31,668.13,0.9]
[1748127833629,1.68097489,668.3,668.13,0.9]
[1748127833830,1.68097489,668.29,668.13,0.9]
[1748127834030,1.68097489,668.28,668.13,0.9]
[1748127834230,1.68097489,668.27,668.13,0.9]
[1748127834429,2.67983361,668.26,668.13,0.9]
[1748127834629,1.68102261,668.25,668.13,0.9]
[1748127834832,2.67983361,668.24,668.13,0.9]
[1748127835031,1.13290728,668.23,668.13,0.9]
[1748127835227,1.13290728,668.22,668.13,0.9]
[1748127835431,2.13171828,668.21,668.13,0.9]
[1748127835731,2.13171828,668.2,668.13,0.9]
[1748127835928,1.13290728,668.19,668.13,0.9]
[1748127836133,1.13290728,668.18,668.13,0.9]
[1748127836328,0.998811,668.2,668.13,0.9]
[1748127836528,1.13299144,668.19,668.13,0.9]
[1748127836733,0.998811,668.17,668.13,0.9]
[1748127837233,0.998811,668.16,668.13,0.9]
[1748127837633,0.998811,668.15,668.13,0.9]
[1748127838332,0.998811,668.14,668.13,0.9]
[1748127842047,2.1321003,668.14,668.13,0.9]
[1748127842942,2.13220392,668.14,668.13,0.9]
[1748127846547,2.13221121,668.14,668.13,0.9]
[1748127852163,2.13200228,668.14,668.13,0.9]
[1748127853948,2.13192732,668.14,668.13,0.9]
[1748127857558,2.13193082,668.14,668.13,0.9]
[1748127861262,2.13222233,668.14,668.13,0.9]
[1748127864063,2.13222233,668.14,668.08,0.47544884]
[1748127864264,1.13341133,668.13,668.08,0.47544884]
[1748127864464,1.13341133,668.12,668.08,0.47544884]
[1748127864665,2.13222233,668.11,668.08,0.47544884]
[1748127864964,0.998811,668.11,668.08,0.47544884]
[1748127865168,0.998811,668.11,667.99,0.47544884]
[1748127865465,0.998811,668.1,667.99,0.47544884]
[1748127865861,0.998811,668.09,667.99,0.47544884]
[1748127866268,0.998811,668.08,667.99,0.47544884]
[1748127866467,1.68132365,668.07,667.99,0.47544884]
[1748127866669,2.68013465,668.06,667.99,0.47544884]
[1748127866869,1.68104166,668.05,667.99,0.47544884]
[1748127867062,1.68104166,668.04,667.99,0.47544884]
[1748127867263,2.67985266,668.03,667.99,0.47544884]
[1748127867463,1.68104166,668.02,667.99,0.47544884]
[1748127867672,1.68104166,668.01,667.99,0.47544884]
[1748127867872,2.67985266,668.0,667.99,0.47544884]
[1748127868269,2.67985266,668.0,667.86,1.27]
[1748127868466,2.13185997,667.99,667.86,1.27]
[1748127868670,1.13245771,667.98,667.86,1.27]
[1748127868872,1.13245771,667.97,667.86,1.27]
[1748127869164,2.13126871,667.96,667.86,1.27]
[1748127869376,2.13126871,667.95,667.86,1.27]
[1748127869568,0.998811,667.95,667.86,1.27]
[1748127869764,0.998811,667.94,667.86,1.27]
[1748127870169,0.998811,667.93,667.86,1.27]
[1748127870769,0.998811,667.92,667.86,1.27]
[1748127871470,0.998811,667.91,667.86,1.27]
[1748127871972,0.998811,667.9,667.86,1.27]
[1748127872166,1.10769483,668.3,667.86,1.27]
[1748127872366,1.6795165,668.29,667.86,1.27]
[1748127872566,1.6795165,668.28,667.86,1.27]
[1748127872766,2.67952304,668.27,667.86,1.27]
[1748127873069,1.6795165,668.26,667.86,1.27]
[1748127873370,2.67959348,668.25,667.86,1.27]
[1748127873670,1.67958694,668.24,667.86,1.27]
[1748127873864,1.67958694,668.23,667.86,1.27]
[1748127874068,1.67958694,668.22,667.86,1.27]
[1748127874266,1.67981407,668.21,667.86,1.27]
[1748127874470,1.67981407,668.2,667.86,1.27]
[1748127874665,2.67982061,668.19,667.86,1.27]
[1748127874964,1.67981407,668.18,667.86,1.27]
[1748127875271,2.67982061,668.17,667.86,1.27]
[1748127875471,1.67981407,668.16,667.86,1.27]
[1748127875672,1.67981407,668.15,667.86,1.27]
[1748127875880,1.67981407,668.14,667.86,1.27]
[1748127876075,2.68006968,668.13,667.86,1.27]
[1748127876384,1.13248691,668.12,667.86,1.27]
[1748127876678,2.13249345,668.11,667.86,1.27]
[1748127876879,1.13248691,668.1,667.86,1.27]
[1748127877068,1.00000654,668.11,667.86,1.27]
[1748127877270,1.13267596,668.1,667.86,1.27]
[1748127877470,1.00000654,668.09,667.86,1.27]
[1748127878175,1.00000654,668.08,667.86,1.27]
[1748127878376,1.00000654,668.08,667.88,0.47544884]
[1748127878676,1.00000654,668.07,667.88,0.47544884]
[1748127879177,1.10769483,668.29,667.88,0.47544884]
[1748127879178,1.00000654,668.06,667.88,0.47544884]
[1748127880174,1.00000654,668.05,667.88,0.47544884]
[1748127880876,1.10769483,668.28,667.89,0.47544884]
[1748127881081,1.6812246,668.27,667.89,0.47544884]
[1748127881280,1.6812246,668.26,667.89,0.47544884]
[1748127881480,1.6812246,668.25,667.89,0.47544884]
[1748127881676,1.6812246,668.24,667.89,0.47544884]
[1748127881881,2.68523658,668.23,667.89,0.47544884]
[1748127882082,1.68142309,668.22,667.89,0.47544884]
[1748127882279,1.68142309,668.21,667.89,0.47544884]
[1748127882479,1.68142309,668.2,667.89,0.47544884]
[1748127882784,2.68543507,668.19,667.86,1.27]
[1748127882974,1.13337576,668.18,667.86,1.27]
[1748127883179,2.13738774,668.17,667.86,1.27]
[1748127883380,1.13337576,668.16,667.86,1.27]
[1748127883679,1.13337576,668.15,667.86,1.27]
[1748127883880,1.13337576,668.14,667.86,1.27]
[1748127884080,2.13738774,668.13,667.86,1.27]
[1748127884282,1.00401198,668.13,667.86,1.27]
[1748127884886,1.13322497,668.12,667.86,1.27]
[1748127885079,1.13320411,668.11,667.86,1.27]
[1748127885279,1.00401198,668.1,667.86,1.27]
[1748127885684,1.00401198,668.09,667.86,1.27]
[1748127886084,1.00401198,668.08,667.86,1.27]
[1748127886585,1.00401198,668.07,667.86,1.27]
[1748127886986,1.00401198,668.06,667.86,1.27]
[1748127887587,1.00401198,668.05,667.86,1.27]
[1748127888488,1.10769483,668.36,667.86,1.27]
[1748127888688,1.68131538,668.35,667.86,1.27]
[1748127888984,2.68680298,668.34,667.86,1.27]
[1748127889284,1.68123835,668.33,667.86,1.27]
[1748127889488,2.68680298,668.32,667.86,1.27]
[1748127889688,1.68123835,668.31,667.86,1.27]
[1748127889892,1.68123835,668.3,667.86,1.27]
[1748127890090,2.68680298,668.29,667.86,1.27]
[1748127890287,1.68123835,668.28,667.86,1.27]
[1748127890487,1.68123835,668.27,667.86,1.27]
[1748127890689,1.68109936,668.26,667.86,1.27]
[1748127890885,1.68109936,668.25,667.86,1.27]
[1748127891085,1.68109936,668.24,667.86,1.27]
[1748127891384,1.68109936,668.23,667.86,1.27]
[1748127891588,2.68666399,668.22,667.86,1.27]
[1748127891789,1.68109936,668.21,667.86,1.27]
[1748127891988,1.68109936,668.2,667.86,1.27]
[1748127892189,2.68666399,668.19,667.86,1.27]
[1748127892389,1.68109936,668.18,667.86,1.27]
[1748127892586,1.68109936,668.17,667.86,1.27]
[1748127892792,1.13309375,668.16,667.86,1.27]
[1748127892986,1.13309375,668.15,667.86,1.27]
[1748127893186,2.13865838,668.14,667.86,1.27]
[1748127893489,1.13309375,668.13,667.86,1.27]
[1748127893689,1.00556463,668.14,667.86,1.27]
[1748127893690,1.00556463,668.12,667.86,1.27]
[1748127894389,1.00556463,668.11,667.86,1.27]
[1748127894790,1.00556463,668.1,667.86,1.27]
[1748127895093,1.00556463,668.09,667.86,1.27]
[1748127895687,1.00556463,668.08,667.86,1.27]
[1748127896293,1.00556463,668.07,667.86,1.27]
[1748127896792,1.00556463,668.06,667.86,1.27]
[1748127897395,1.10769483,668.41,667.86,1.27]
[1748127897595,1.68122933,668.4,667.86,1.27]
[1748127897798,1.68122933,668.39,667.86,1.27]
[1748127897999,0.54818453,668.38,667.86,1.27]
[1748127898188,1.6812327,668.37,667.86,1.27]
[1748127898392,1.6812327,668.36,667.86,1.27]
[1748127898590,1.6812327,668.35,667.86,1.27]
[1748127898790,2.68831148,668.34,667.86,1.27]
[1748127898993,1.6812327,668.33,667.86,1.27]
[1748127899197,2.68831148,668.32,667.86,1.27]
[1748127899397,1.6812327,668.31,667.86,1.27]
[1748127899596,2.68831148,668.3,667.86,1.27]
[1748127899800,1.6812327,668.29,667.86,1.27]
[1748127900096,1.68128471,668.28,667.86,1.27]
[1748127900296,1.68128471,668.27,667.86,1.27]
[1748127900496,1.68128471,668.26,667.86,1.27]
[1748127900700,1.68128471,668.25,667.86,1.27]
[1748127900894,1.10769483,668.41,667.86,1.27]
[1748127900895,2.68836349,668.24,667.86,1.27]
[1748127901098,1.68128471,668.23,667.86,1.27]
[1748127901299,1.68125663,668.22,667.86,1.27]
[1748127901500,1.68125663,668.21,667.86,1.27]
[1748127901695,1.68125663,668.2,667.86,1.27]
[1748127901902,2.68833541,668.19,667.86,1.27]
[1748127902104,1.68125663,668.18,667.86,1.27]
[1748127902299,2.68833541,668.17,667.86,1.27]
[1748127902496,1.68125663,668.16,667.86,1.27]
[1748127902702,1.68125663,668.15,667.86,1.27]
[1748127902896,2.78895146,668.14,667.86,1.27]
[1748127903101,2.68833541,668.13,667.86,1.27]
[1748127903298,1.68125663,668.12,667.86,1.27]
[1748127903502,1.68125663,668.11,667.86,1.27]
[1748127903702,1.68125663,668.1,667.86,1.27]
[1748127903905,1.68125663,668.09,667.86,1.27]